lending/lending_fUSD_20240401
["ID","MTS","AMOUNT","RATE_DAILY","PERIOD"]
[321183362,1711951852426,-500.0,0.00056986,120]
[321183363,1711951852435,-1995.86,0.00056986,120]
[321183364,1711951852445,-500.0,0.00056986,120]
[321183365,1711951852455,-598.43,0.00056986,120]
[321183366,1711951852464,-500.0,0.00056986,120]
[321183367,1711951852474,-1598.44,0.00056986,120]
[321183368,1711951852484,-610.02,0.00056986,120]
[321183369,1711951852493,-500.0,0.00056986,120]
[321183370,1711951852502,-245.62,0.00056986,120]
[321183371,1711951852513,-1620.39,0.00056986,120]
[321183372,1711951852523,-500.0,0.00056986,120]
[321183373,1711951852533,-500.0,0.00056986,120]
[321183374,1711951852542,-1182.42,0.00056986,120]
[321183375,1711951852552,-500.0,0.00056986,120]
[321183376,1711951852562,-296.31,0.00056986,120]
[321183377,1711951852573,-500.0,0.00056986,120]
[321183378,1711951852582,-500.0,0.00056986,120]
[321183379,1711951852592,-500.0,0.00056986,120]
[321183380,1711951852601,-1108.51,0.00056986,120]
[321183381,1711951852611,-2166.26,0.00056986,120]
[321183382,1711951852620,-500.0,0.00056986,120]
[321183383,1711951852629,-500.0,0.00056986,120]
[321183384,1711951852639,-500.0,0.00056986,120]
[321183385,1711951852648,-760.91,0.00056986,120]
[321183386,1711951852658,-242.08,0.00056986,120]
[321183387,1711951852667,-500.0,0.00056986,120]
[321183388,1711951852676,-1208.42,0.00056986,120]
[321183389,1711951852685,-500.0,0.00056986,120]
[321183390,1711951852695,-500.0,0.00056986,120]
[321183391,1711951852703,-2832.74,0.00056986,120]
[321183392,1711951852713,-500.0,0.00056986,120]
[321183393,1711951852723,-651.14,0.00056986,120]
[321183394,1711951852732,-500.0,0.00056986,120]
[321183395,1711951852742,-734.88,0.00056986,120]
[321183396,1711951852751,-500.0,0.00056986,120]
[321183397,1711951852760,-605.65,0.00056986,120]
[321183398,1711951852769,-1257.16,0.00056986,120]
[321183399,1711951852778,-741.06,0.00056986,120]
[321183400,1711951852787,-1699.92,0.00056986,120]
[321183401,1711951852796,-1993.44,0.00056986,120]
[321183402,1711951852805,-500.0,0.00056986,120]
[321183403,1711951852815,-3642.1,0.00056986,120]
[321183404,1711951852826,-7257.52,0.00056986,120]
[321183405,1711951852835,-500.0,0.00056986,120]
[321183406,1711951852844,-902.57,0.00056986,21]
[321183407,1711951852853,-500.0,0.00056986,120]
[321183408,1711951852862,-500.0,0.00056986,120]
[321183409,1711951852871,-500.0,0.00056986,120]
[321183410,1711951852880,-500.0,0.00056986,120]
[321183411,1711951852890,-2173.88,0.00056986,120]
[321183412,1711951852899,-500.0,0.00056986,120]
[321183413,1711951852908,-5126.66726796,0.00057,120]
[321183414,1711951852918,-2502.0,0.00057,30]
[321183415,1711951852927,-260.0,0.00057,120]
[321183416,1711951852937,-234.66,0.00057,30]
[321183417,1711951852946,-500.0,0.0005701,90]
[321183418,1711951852956,-101559.4,0.00057234,6]
[321183419,1711951852965,-536.41,0.0005726,120]
[321183420,1711951852974,-500.0,0.0005726,120]
[321183421,1711951852983,-165.45594622,0.0005726,120]
[321183422,1711951852992,-500.0,0.0005726,120]
[321183423,1711951853001,-500.0,0.0005726,120]
[321183424,1711951853010,-500.0,0.0005726,120]
[321183425,1711951853019,-500.0,0.0005726,120]
[321183426,1711951853028,-500.0,0.0005726,120]
[321183427,1711951853037,-623.7,0.0005726,120]
[321183428,1711951853046,-775.42,0.0005726,120]
[321183429,1711951853056,-500.0,0.0005726,120]
[321183430,1711951853065,-768.77,0.0005726,120]
[321183431,1711951853076,-1125.53,0.0005726,120]
[321183432,1711951853085,-704.11,0.0005726,120]
[321183433,1711951853094,-3905.3,0.0005726,120]
[321183434,1711951853102,-1527.15,0.0005726,120]
[321183435,1711951853111,-500.0,0.0005726,120]
[321183436,1711951853121,-2316.33,0.0005726,120]
[321183437,1711951853130,-500.0,0.0005726,120]
[321183438,1711951853139,-844.99,0.0005726,120]
[321183439,1711951853148,-500.0,0.0005726,120]
[321183440,1711951853157,-500.0,0.0005726,120]
[321183441,1711951853166,-885.7,0.0005726,120]
[321183442,1711951853175,-500.0,0.0005726,120]
[321183443,1711951853184,-500.0,0.0005726,120]
[321183444,1711951853193,-1295.33,0.0005726,120]
[321183445,1711951853202,-2937.94,0.0005726,120]
[321183446,1711951853211,-500.0,0.0005726,120]
[321183447,1711951853220,-1995.86,0.0005726,120]
[321183448,1711951853229,-425.03680229,0.0005726,120]
[321183449,1711951853238,-598.43,0.0005726,120]
[321183450,1711951853247,-501.49,0.0005726,120]
[321183451,1711951853256,-1598.44,0.0005726,120]
[321183452,1711951853265,-500.0,0.0005726,120]
[321183453,1711951853275,-1620.39,0.0005726,120]
[321183454,1711951853284,-500.0,0.0005726,120]
[321183455,1711951853295,-500.0,0.0005726,120]
[321183456,1711951853304,-1182.42,0.0005726,120]
[321183457,1711951853313,-500.0,0.0005726,120]
[321183458,1711951853326,-500.0,0.0005726,120]
[321183459,1711951853335,-600.55,0.0005726,120]
[321183460,1711951853344,-1108.51,0.0005726,120]
[321183461,1711951853353,-2166.26,0.0005726,120]
[321183462,1711951853362,-500.0,0.0005726,120]
[321183463,1711951853371,-500.0,0.0005726,120]
[321183464,1711951853380,-500.0,0.0005726,120]
[321183465,1711951853389,-760.91,0.0005726,120]
[321183466,1711951853399,-500.0,0.0005726,120]
[321183467,1711951853411,-1208.42,0.0005726,120]
[321183468,1711951853420,-555.96,0.0005726,120]
[321183469,1711951853429,-500.0,0.0005726,120]
[321183470,1711951853439,-2832.74,0.0005726,120]
[321183471,1711951853448,-293.3,0.0005726,120]
[321183472,1711951853459,-651.14,0.0005726,120]
[321183473,1711951853468,-500.0,0.0005726,120]
[321183474,1711951853477,-734.88,0.0005726,120]
[321183475,1711951853487,-509.46,0.0005726,120]
[321183476,1711951853497,-1257.16,0.0005726,120]
[321183477,1711951853507,-741.06,0.0005726,120]
[321183478,1711951853517,-1699.92,0.0005726,120]
[321183479,1711951853526,-278.849216,0.0005726,120]
[321183480,1711951853536,-151.0,0.0005726,120]
[321183481,1711951853546,-1993.44,0.0005726,120]
[321183482,1711951853555,-278.849216,0.0005726,120]
[321183483,1711951853564,-500.0,0.0005726,120]
[321183484,1711951853576,-3642.1,0.0005726,120]
[321183485,1711951853585,-7257.52,0.0005726,120]
[321183486,1711951853595,-151.0,0.0005726,30]
[321183487,1711951853604,-500.0,0.0005726,120]
[321183488,1711951853613,-902.57,0.0005726,21]
[321183489,1711951853623,-500.0,0.0005726,120]
[321183490,1711951853632,-156.980298,0.0005726,120]
[321183491,1711951853641,-500.0,0.0005726,120]
[321183492,1711951853651,-500.0,0.0005726,120]
[321183493,1711951853661,-151.0,0.0005726,120]
[321183494,1711951853672,-2173.88,0.0005726,120]
[321183495,1711951853682,-500.0,0.0005726,120]
[321183496,1711951853691,-151.0,0.0005726,120]
[321183497,1711951853701,-500.0,0.00057534,120]
[321183498,1711951853710,-500.0,0.00057534,120]
[321183499,1711951853720,-152.84,0.00057534,120]
[321183500,1711951853729,-500.0,0.00057534,120]
[321183501,1711951853739,-500.0,0.00057534,120]
[321183502,1711951853748,-500.0,0.00057534,120]
[321183503,1711951853757,-623.7,0.00057534,120]
[321183504,1711951853766,-775.42,0.00057534,120]
[321183505,1711951853775,-500.0,0.00057534,120]
[321183506,1711951853785,-768.77,0.00057534,120]
[321183507,1711951853794,-1125.53,0.00057534,120]
[321183508,1711951853804,-704.11,0.00057534,120]
[321183509,1711951853814,-3905.3,0.00057534,120]
[321183510,1711951853825,-1527.15,0.00057534,120]
[321183511,1711951853835,-500.0,0.00057534,120]
[321183512,1711951853844,-2316.33,0.00057534,120]
[321183513,1711951853854,-500.0,0.00057534,120]
[321183514,1711951853863,-844.99,0.00057534,120]
[321183515,1711951853872,-500.0,0.00057534,120]
[321183516,1711951853882,-500.0,0.00057534,120]
[321183517,1711951853891,-885.7,0.00057534,120]
[321183518,1711951853901,-500.0,0.00057534,120]
[321183519,1711951853910,-500.0,0.00057534,120]
[321183520,1711951853920,-1295.33,0.00057534,120]
[321183521,1711951853930,-2937.94,0.00057534,120]
[321183522,1711951853940,-500.0,0.00057534,120]
[321183523,1711951853949,-1995.86,0.00057534,120]
[321183524,1711951853958,-598.43,0.00057534,120]
[321183525,1711951853968,-1598.44,0.00057534,120]
[321183526,1711951853979,-500.0,0.00057534,120]
[321183527,1711951853989,-1620.39,0.00057534,120]
[321183528,1711951853999,-500.0,0.00057534,120]
[321183529,1711951854009,-376.83,0.00057534,120]
[321183530,1711951854019,-1182.42,0.00057534,120]
[321183531,1711951854028,-500.0,0.00057534,120]
[321183532,1711951854037,-500.0,0.00057534,120]
[321183533,1711951854047,-1108.51,0.00057534,120]
[321183534,1711951854057,-2166.26,0.00057534,120]
[321183535,1711951854068,-500.0,0.00057534,120]
[321183536,1711951854078,-500.0,0.00057534,120]
[321183537,1711951854087,-500.0,0.00057534,120]
[321183538,1711951854097,-760.91,0.00057534,120]
[321183539,1711951854107,-500.0,0.00057534,120]
[321183540,1711951854117,-1208.42,0.00057534,120]
[321183541,1711951854127,-500.0,0.00057534,120]
[321183542,1711951854137,-2832.74,0.00057534,120]
[321183543,1711951854147,-651.14,0.00057534,120]
[321183544,1711951854156,-500.0,0.00057534,120]
[321183545,1711951854166,-734.88,0.00057534,120]
[321183546,1711951854175,-1257.16,0.00057534,120]
[321183547,1711951854187,-741.06,0.00057534,120]
[321183548,1711951854197,-1699.92,0.00057534,120]
[321183549,1711951854207,-1993.44,0.00057534,120]
[321183550,1711951854217,-500.0,0.00057534,120]
[321183551,1711951854228,-3642.1,0.00057534,120]
[321183552,1711951854239,-7257.52,0.00057534,120]
[321183553,1711951854249,-500.0,0.00057534,120]
[321183554,1711951854260,-902.57,0.00057534,21]
[321183555,1711951854271,-500.0,0.00057534,120]
[321183556,1711951854281,-644.19356815,0.00057534,120]
[321183557,1711951854292,-2173.88,0.00057534,120]
[321183558,1711951854301,-500.0,0.00057534,120]
[321183559,1711951854311,-1000.0,0.00057534,120]
[321183560,1711951854323,-500.0,0.00057558,90]
[321183561,1711951854333,-774.45,0.0005763,120]
[321183562,1711951854342,-476.7,0.00057808,120]
[321183563,1711951854351,-500.0,0.00057808,120]
[321183564,1711951854360,-500.0,0.00057808,120]
[321183565,1711951854369,-500.0,0.00057808,120]
[321183566,1711951854379,-500.0,0.00057808,120]
[321183567,1711951854388,-623.7,0.00057808,120]
[321183568,1711951854398,-775.42,0.00057808,120]
[321183569,1711951854409,-423.91,0.00057808,120]
[321183570,1711951854419,-768.77,0.00057808,120]
[321183571,1711951854429,-1125.53,0.00057808,120]
[321183572,1711951854440,-704.11,0.00057808,120]
[321183573,1711951854450,-3905.3,0.00057808,120]
[321183574,1711951854471,-1527.15,0.00057808,120]
[321183575,1711951854482,-500.0,0.00057808,120]
[321183576,1711951854492,-2316.33,0.00057808,120]
[321183577,1711951854501,-500.0,0.00057808,120]
[321183578,1711951854511,-844.99,0.00057808,120]
[321183579,1711951854522,-150.17,0.00057808,120]
[321183580,1711951854531,-500.0,0.00057808,120]
[321183581,1711951854541,-885.7,0.00057808,120]
[321183582,1711951854551,-500.0,0.00057808,120]
[321183583,1711951854560,-500.0,0.00057808,120]
[321183584,1711951854573,-1295.33,0.00057808,120]
[321183585,1711951854582,-2937.94,0.00057808,120]
[321183586,1711951854592,-500.0,0.00057808,120]
[321183587,1711951854601,-1995.86,0.00057808,120]
[321183588,1711951854612,-598.43,0.00057808,120]
[321183589,1711951854622,-1598.44,0.00057808,120]
[321183590,1711951854632,-500.0,0.00057808,120]
[321183591,1711951854642,-151.0,0.00057808,120]
[321183592,1711951854653,-1620.39,0.00057808,120]
[321183593,1711951854663,-488.84,0.00057808,120]
[321183594,1711951854673,-1182.42,0.00057808,120]
[321183595,1711951854683,-500.0,0.00057808,120]
[321183596,1711951854694,-500.0,0.00057808,120]
[321183597,1711951854704,-1108.51,0.00057808,120]
[321183598,1711951854715,-2166.26,0.00057808,120]
[321183599,1711951854725,-500.0,0.00057808,120]
[321183600,1711951854736,-500.0,0.00057808,120]
[321183601,1711951854746,-500.0,0.00057808,120]
[321183602,1711951854756,-760.91,0.00057808,120]
[321183603,1711951854766,-500.0,0.00057808,120]
[321183604,1711951854776,-1208.42,0.00057808,120]
[321183605,1711951854786,-500.0,0.00057808,120]
[321183606,1711951854796,-2832.74,0.00057808,120]
[321183607,1711951854806,-151.0,0.00057808,7]
[321183608,1711951854816,-651.14,0.00057808,120]
[321183609,1711951854829,-500.0,0.00057808,120]
[321183610,1711951854839,-734.88,0.00057808,120]
[321183611,1711951854850,-1257.16,0.00057808,120]
[321183612,1711951854861,-741.06,0.00057808,120]
[321183613,1711951854872,-1699.92,0.00057808,120]
[321183614,1711951854882,-1993.44,0.00057808,120]
[321183615,1711951854893,-500.0,0.00057808,120]
[321183616,1711951854904,-3642.1,0.00057808,120]
[321183617,1711951854915,-7257.52,0.00057808,120]
[321183618,1711951854926,-500.0,0.00057808,120]
[321183619,1711951854936,-902.57,0.00057808,21]
[321183620,1711951854946,-500.0,0.00057808,120]
[321183621,1711951854956,-2173.88,0.00057808,120]
[321183622,1711951854966,-500.0,0.00057808,120]
[321183623,1711951854975,-1000.0,0.00057897,2]
[321183624,1711951854985,-564787.43936372,0.000579,10]
[321183625,1711951854995,-191.44381962,0.000579,120]
[321183626,1711951855005,-191.44381962,0.000579,120]
[321183627,1711951855016,-191.44381962,0.000579,120]
[321183628,1711951855026,-2316.12317041,0.000579,30]
[321183629,1711951855036,-1069.33662062,0.000579,2]
[321183630,1711951855047,-820.9854267,0.000579,2]
[321183631,1711951855057,-232.69780521,0.00057902,120]
[321183632,1711951855067,-150.5,0.0005797,15]
[321183633,1711951855082,-150.5,0.0005798,15]
[321183634,1711951855092,-5114.6129814,0.00057988,6]
[321183635,1711951855101,-150.5,0.0005799,15]
[321183636,1711951855111,-5349.42285617,0.0005799,30]
[321183637,1711951855122,-195.21548814,0.00057993,4]
[321183638,1711951855131,-267.68258509,0.00057993,4]
[321183639,1711951855140,-260.17156395,0.00057993,4]
[321183640,1711951855149,-1283.76535864,0.00057993,2]
[321183641,1711951855158,-1245.92184657,0.00057993,4]
[321183642,1711951855168,-500.0,0.00057994,30]
[321183643,1711951855176,-500.0,0.00057994,120]
[321183644,1711951855185,-500.0,0.00057994,120]
[321183645,1711951855195,-500.0,0.00057994,120]
[321183646,1711951855205,-500.0,0.00057994,120]
[321183647,1711951855215,-500.0,0.00057994,120]
[321183648,1711951855224,-500.0,0.00057994,120]
[321183649,1711951855234,-500.0,0.00057994,120]
[321183650,1711951855243,-500.0,0.00057994,120]
[321183651,1711951855253,-500.0,0.00057994,120]
[321183652,1711951855263,-500.0,0.00057994,120]
[321183653,1711951855272,-500.0,0.00057994,120]
[321183654,1711951855281,-500.0,0.00057994,120]
[321183655,1711951855291,-500.0,0.00057994,120]
[321183656,1711951855300,-500.0,0.00057994,120]
[321183657,1711951855310,-500.0,0.00057994,120]
[321183658,1711951855323,-533.06,0.00057994,120]
[321183659,1711951855332,-500.0,0.00057994,120]
[321183660,1711951855341,-500.0,0.00057994,120]
[321183661,1711951855350,-500.0,0.00057994,120]
[321183662,1711951855508,-500.0,0.00057994,120]
[321183663,1711951855518,-500.0,0.00057994,120]
[321183664,1711951855528,-309.24624682,0.00057999,120]
[321183665,1711951855538,-342.61905406,0.00057999,120]
[321183666,1711951855548,-313.40539072,0.00057999,120]
[321183667,1711951855558,-500.0,0.00057999,120]
[321183668,1711951855571,-500.0,0.00057999,120]
[321183669,1711951855580,-523.18353233,0.00057999,120]
[321183670,1711951855590,-522.54627072,0.00057999,120]
[321183671,1711951855599,-500.0,0.00057999,120]
[321183672,1711951855609,-510.07066171,0.00057999,120]
[321183673,1711951855618,-500.0,0.00057999,120]
[321183674,1711951855627,-519.96430127,0.00057999,120]
[321183675,1711951855636,-500.0,0.00057999,120]
[321183676,1711951855646,-500.0,0.00057999,120]
[321183677,1711951855655,-538.06653155,0.00057999,120]
[321183678,1711951855664,-500.0,0.00057999,120]
[321183679,1711951855674,-500.0,0.00057999,120]
[321183680,1711951855683,-500.0,0.00057999,120]
[321183681,1711951855693,-500.0,0.00057999,120]
[321183682,1711951855702,-500.0,0.00057999,120]
[321183683,1711951855712,-500.0,0.00057999,120]
[321183684,1711951855721,-500.0,0.00057999,120]
[321183685,1711951855731,-500.0,0.00057999,120]
[321183686,1711951855740,-500.0,0.00057999,120]
[321183687,1711951855750,-500.0,0.00057999,120]
[321183688,1711951855759,-500.0,0.00057999,120]
[321183689,1711951855769,-417.97,0.00057999,120]
[321183690,1711951855779,-500.0,0.00057999,120]
[321183691,1711951855789,-328.76318935,0.00057999,120]
[321183692,1711951855798,-500.0,0.00057999,120]
[321183693,1711951855807,-523.91015965,0.00057999,30]
[321183694,1711951855817,-500.0,0.00057999,120]
[321183695,1711951855828,-500.0,0.00057999,120]
[321183696,1711951855837,-500.0,0.00057999,120]
[321183697,1711951855847,-1130.82,0.00057999,120]
[321183698,1711951855856,-500.0,0.00057999,120]
[321183699,1711951855867,-500.0,0.00057999,120]
[321183700,1711951855876,-500.0,0.00057999,120]
[321183701,1711951855886,-491.37,0.00057999,120]
[321183702,1711951855895,-525.19952382,0.00057999,120]
[321183703,1711951855905,-535.5,0.00057999,120]
[321183704,1711951855915,-503.79706025,0.00057999,120]
[321183705,1711951855924,-500.0,0.00057999,120]
[321183706,1711951855934,-500.0,0.00057999,120]
[321183707,1711951855943,-512.64667875,0.00057999,120]
[321183708,1711951855953,-529.93075515,0.00057999,120]
[321183709,1711951855962,-2000.0,0.00057999,120]
[321183710,1711951855972,-871292.88056866,0.00058,15]
[321183711,1711951856191,-155.37340324,0.00039998,4]
[321183712,1711951856201,-500.0,0.00054794,120]
[321183713,1711951856210,-500.0,0.00056986,120]
[321183714,1711951856219,-1000.0,0.0005701,90]
[321183715,1711951856229,-389.00564996,0.0005726,120]
[321183716,1711951856241,-110.99435004,0.0005726,120]
[321183717,1711951856250,-151.0,0.0005726,7]
[321183718,1711951856259,-1000.0,0.00057284,90]
[321183719,1711951856268,-357.55570285,0.00057534,120]
[321183720,1711951856284,-500.0,0.00055068,120]
[321183721,1711951856294,-142.44429715,0.00057534,120]
[321183722,1711951856303,-506.27,0.00057808,120]
[321183723,1711951856313,-389707.33849161,0.00058,15]
[321183724,1711951856327,-692.88973648,0.00058,15]
[321183725,1711951856339,-800.03699905,0.00058,15]
[321183726,1711951856354,-5453.39232859,0.00058,15]
[321183727,1711951856366,-10646.83722971,0.00058,15]
[321183728,1711951856394,-1243.12450964,0.00058,15]
[321183729,1711951856414,-1957.8,0.00058,15]
[321183730,1711951856426,-601.10628981,0.00058,15]
[321183731,1711951856439,-692.11,0.00058,15]
[321183732,1711951856451,-970.75603106,0.00058,15]
[321183733,1711951856492,-2179.75603442,0.00039998,4]
[321183734,1711951856502,-5201.43345374,0.00058,15]
[321183735,1711951856514,-3110.91340277,0.00058,15]
[321183736,1711951856617,-287.76692697,0.00039998,4]
[321183737,1711951856637,-1352.07028018,0.00039997,4]
[321183738,1711951856648,-3673.62273672,0.00039997,4]
[321183739,1711951856659,-485.5262279,0.00039997,4]
[321183740,1711951856670,-1891.13557057,0.00039998,4]
[321183741,1711951856679,-284.07303489,0.00053065,4]
[321183742,1711951856688,-1843.43951957,0.00054694,32]
[321183743,1711951856697,-500.0,0.00054794,120]
[321183744,1711951856706,-500.0,0.00055068,120]
[321183745,1711951856716,-500.0,0.00055342,120]
[321183746,1711951856725,-219.21,0.00055616,120]
[321183747,1711951856735,-1000.0,0.00057832,90]
[321183748,1711951856745,-183721.04250549,0.00058,15]
[321183749,1711951856768,-214.80646049,0.00053064,4]
[321183750,1711951856778,-500.0,0.00054794,120]
[321183751,1711951856787,-129432.49830236,0.00058,15]
[321183752,1711951856978,-2028007.41371794,0.00058,15]
[321183753,1711951856988,-151.0,0.00058,120]
[321183754,1711951856997,-4312.85009334,0.00058,30]
[321183755,1711951857007,-1511.0,0.00058,31]
[321183756,1711951857016,-154.987144,0.00058,120]
[321183757,1711951857026,-260.0,0.00058,120]
[321183758,1711951857035,-151.0,0.00058,120]
[321183759,1711951857045,-151.0,0.00058,120]
[321183760,1711951857054,-151.0,0.00058,120]
[321183761,1711951857063,-151.0,0.00058,120]
[321183762,1711951857078,-151.0,0.00058,120]
[321183763,1711951857087,-151.0,0.00058,120]
[321183764,1711951857098,-510.6374,0.00058,87]
[321183765,1711951857109,-278.849216,0.00058,120]
[321183766,1711951857119,-151.0,0.00058,120]
[321183767,1711951857129,-278.849216,0.00058,120]
[321183768,1711951857140,-151.0,0.00058,120]
[321183769,1711951857151,-262.275261,0.00058,120]
[321183770,1711951857161,-151.0,0.00058,7]
[321183771,1711951857173,-150.0,0.00058058,120]
[321183772,1711951857185,-458.0,0.00058058,120]
[321183773,1711951857195,-2160.718,0.00058058,120]
[321183774,1711951857204,-962.0,0.00058058,120]
[321183775,1711951857215,-538.0,0.00058058,120]
[321183776,1711951857224,-150.718,0.00058058,120]
[321183777,1711951857233,-211.0,0.00058058,120]
[321183778,1711951857243,-1463.0,0.00058058,120]
[321183779,1711951857252,-397.0,0.00058058,120]
[321183780,1711951857262,-1139.0,0.00058058,120]
[321183781,1711951857272,-176.542,0.00058058,2]
[321183782,1711951857281,-500.0,0.00058082,120]
[321183783,1711951857290,-167.82474236,0.00058082,120]
[321183784,1711951857300,-208.02,0.00058082,120]
[321183785,1711951857309,-500.0,0.00058082,120]
[321183786,1711951857323,-623.7,0.00058082,120]
[321183787,1711951857333,-775.42,0.00058082,120]
[321183788,1711951857343,-768.77,0.00058082,120]
[321183789,1711951857353,-1125.53,0.00058082,120]
[321183790,1711951857363,-704.11,0.00058082,120]
[321183791,1711951857373,-3905.3,0.00058082,120]
[321183792,1711951857383,-1527.15,0.00058082,120]
[321183793,1711951857393,-500.0,0.00058082,120]
[321183794,1711951857402,-2316.33,0.00058082,120]
[321183795,1711951857413,-500.0,0.00058082,120]
[321183796,1711951857423,-844.99,0.00058082,120]
[321183797,1711951857436,-500.0,0.00058082,120]
[321183798,1711951857446,-885.7,0.00058082,120]
[321183799,1711951857456,-500.0,0.00058082,120]
[321183800,1711951857466,-203.4,0.00058082,120]
[321183801,1711951857476,-1295.33,0.00058082,120]
[321183802,1711951857486,-2937.94,0.00058082,120]
[321183803,1711951857495,-500.0,0.00058082,120]
[321183804,1711951857505,-1995.86,0.00058082,120]
[321183805,1711951857515,-598.43,0.00058082,120]
[321183806,1711951857526,-1598.44,0.00058082,120]
[321183807,1711951857535,-500.0,0.00058082,120]
[321183808,1711951857544,-1620.39,0.00058082,120]
[321183809,1711951857554,-1182.42,0.00058082,120]
[321183810,1711951857564,-500.0,0.00058082,120]
[321183811,1711951857580,-500.0,0.00058082,120]
[321183812,1711951857589,-1108.51,0.00058082,120]
[321183813,1711951857599,-2166.26,0.00058082,120]
[321183814,1711951857610,-625.00541449,0.00058082,120]
[321183815,1711951857619,-500.0,0.00058082,120]
[321183816,1711951857629,-500.0,0.00058082,120]
[321183817,1711951857639,-760.91,0.00058082,120]
[321183818,1711951857649,-500.0,0.00058082,120]
[321183819,1711951857659,-1208.42,0.00058082,120]
[321183820,1711951857669,-500.0,0.00058082,120]
[321183821,1711951857678,-2832.74,0.00058082,120]
[321183822,1711951857689,-651.14,0.00058082,120]
[321183823,1711951857698,-317.01,0.00058082,120]
[321183824,1711951857707,-734.88,0.00058082,120]
[321183825,1711951857717,-1257.16,0.00058082,120]
[321183826,1711951857727,-741.06,0.00058082,120]
[321183827,1711951857736,-1699.92,0.00058082,120]
[321183828,1711951857746,-1993.44,0.00058082,120]
[321183829,1711951857756,-500.0,0.00058082,120]
[321183830,1711951857766,-3642.1,0.00058082,120]
[321183831,1711951857776,-7257.52,0.00058082,120]
[321183832,1711951857785,-500.0,0.00058082,120]
[321183833,1711951857796,-902.57,0.00058082,21]
[321183834,1711951857806,-500.0,0.00058082,120]
[321183835,1711951857816,-2173.88,0.00058082,120]
[321183836,1711951857828,-500.0,0.00058082,120]
[321183837,1711951857838,-1394.47386991,0.00058089,120]
[321183838,1711951857847,-500.0,0.00058106,90]
[321183839,1711951857857,-382.6,0.00058113,30]
[321183840,1711951857868,-500.0,0.00058195,2]
[321183841,1711951857878,-500.0,0.00058195,2]
[321183842,1711951857888,-500.0,0.00058195,2]
[321183843,1711951857898,-409.2031,0.00058195,2]
[321183844,1711951857908,-1000.0,0.00058195,2]
[321183845,1711951857917,-1000.0,0.00058195,2]
[321183846,1711951857927,-1000.0,0.00058195,2]
[321183847,1711951857937,-1000.0,0.00058195,2]
[321183848,1711951857946,-1000.0,0.00058195,2]
[321183849,1711951857956,-1000.0,0.00058195,2]
[321183850,1711951857966,-1000.0,0.00058195,2]
[321183851,1711951857976,-1000.0,0.00058195,2]
[321183852,1711951857985,-1000.0,0.00058195,2]
[321183853,1711951857995,-1000.0,0.00058195,2]
[321183854,1711951858005,-1000.0,0.00058195,2]
[321183855,1711951858015,-1000.0,0.00058195,2]
[321183856,1711951858024,-1000.0,0.00058195,2]
[321183857,1711951858034,-1000.0,0.00058195,2]
[321183858,1711951858045,-1000.0,0.00058195,2]
[321183859,1711951858055,-1000.0,0.00058195,2]
[321183860,1711951858064,-1000.0,0.00058195,2]
[321183861,1711951858078,-1000.0,0.00058195,2]